bitfinex-derivatives/quotes_SOLF0:USTF0_20250425
["timestamp","ask_amount","ask_price","bid_price","bid_amount"]
[1745559176998,5.26711779,151.54,151.5,5.26711779]
[1745559177603,6.5975,151.53,151.5,5.26711779]
[1745559177903,5.26711779,151.54,151.5,5.26711779]
[1745559178898,11.86401779,151.54,151.51,6.598]
[1745559179104,6.5969,151.54,151.51,6.598]
[1745559180204,5.26711779,151.55,151.52,6.5976]
[1745559180804,5.26711779,151.55,151.52,11.86471779]
[1745559181005,23.3,151.57,151.54,11.86381779]
[1745559181203,23.3,151.57,151.54,5.26711779]
[1745559181597,6.5949,151.59,151.55,6.5961]
[1745559183001,35.16141779,151.6,151.56,6.5955]
[1745559183204,35.16141779,151.6,151.56,11.86261779]
[1745559183402,23.3,151.6,151.56,5.26711779]
[1745559183904,23.3,151.6,151.57,6.5952]
[1745559184404,29.8942,151.6,151.58,5.26711779]
[1745559185104,23.3,151.6,151.54,23.3]
[1745559185306,28.56711779,151.6,151.55,5.26711779]
[1745559185698,6.5947,151.59,151.55,11.86311779]
[1745559186607,6.5947,151.59,151.57,5.26711779]
[1745559187305,35.16141779,151.6,151.57,5.26711779]
[1745559187507,29.8943,151.6,151.57,5.26711779]
[1745559188208,23.3,151.6,151.57,5.26711779]
[1745559188706,6.595,151.59,151.57,5.26711779]
[1745559191109,29.8943,151.6,151.57,5.26711779]
[1745559191306,23.3,151.6,151.57,5.26711779]
[1745559192498,6.5946,151.59,151.57,5.26711779]
[1745559192700,23.3,151.6,151.57,5.26711779]
[1745559192901,29.8943,151.6,151.57,11.86251779]
[1745559193709,6.5946,151.59,151.57,5.26711779]
[1745559194901,29.8942,151.6,151.57,11.86251779]
[1745559195510,23.3,151.6,151.57,11.86251779]
[1745559196104,29.8942,151.6,151.57,11.86251779]
[1745559196312,29.8942,151.6,151.57,5.26711779]
[1745559196500,23.3,151.6,151.57,5.26711779]
[1745559197210,23.3,151.6,151.57,11.86241779]
[1745559197410,29.8942,151.6,151.57,5.26711779]
[1745559200113,6.5942,151.6,151.57,5.26711779]
[1745559200314,6.5942,151.6,151.57,11.86251779]
[1745559202416,6.5938,151.61,151.58,6.595]
[1745559203209,6.5942,151.6,151.57,11.86251779]
[1745559204315,6.5942,151.6,151.58,5.26711779]
[1745559205517,23.28,151.63,151.59,5.26711779]
[1745559207315,6.5933,151.62,151.59,11.86141779]
[1745559209017,6.593,151.63,151.61,5.26711779]
[1745559209715,5.26711779,151.64,151.59,5.26711779]
[1745559209919,5.26711779,151.6,151.57,5.26711779]
[1745559210113,5.26711779,151.6,151.56,1.9595]
[1745559210311,5.26711779,151.6,151.55,11.86321779]
[1745559211319,6.5951,151.58,151.55,11.86321779]
[1745559211811,5.26711779,151.6,151.56,6.5959]
[1745559212018,28.54711779,151.62,151.57,5.26711779]
[1745559212618,6.5942,151.6,151.57,11.86231779]
[1745559213116,6.5942,151.6,151.5,1.14807911]
[1745559213117,5.26711779,151.6,151.5,1.14807911]
[1745559213320,23.28,151.62,151.49,1.8855]
[1745559213321,5.26711779,151.52,151.49,1.8855]
[1745559213818,6.5984,151.51,151.49,1.8855]
[1745559215615,5.26711779,151.52,151.49,1.8855]
[1745559215919,11.86481779,151.52,151.49,1.8855]
[1745559216219,28.54711779,151.54,151.49,1.8855]
[1745559216720,6.5975,151.53,151.49,8.4844]
[1745559220121,29.8769,151.54,151.5,11.86561779]
[1745559220327,23.28,151.54,151.5,5.26711779]
[1745559221022,23.28,151.54,151.52,5.26711779]
[1745559221320,6.5964,151.55,151.52,5.26711779]
[1745559229727,6.5964,151.55,151.52,11.86471779]
[1745559230227,6.5964,151.55,151.52,5.26711779]
[1745559231429,11.86311779,151.56,151.52,5.26711779]
[1745559231631,6.596,151.56,151.52,5.26711779]
[1745559231930,6.596,151.56,151.52,11.86431779]
[1745559239139,29.8758,151.57,151.53,6.5972]
[1745559239330,5.26711779,151.6,151.49,25.1655]
[1745559239630,6.5953,151.58,151.56,5.26711779]
[1745559239833,23.28,151.6,151.56,5.26711779]
[1745559241934,6.5947,151.59,151.56,5.26711779]
[1745559242131,23.28,151.6,151.56,5.26711779]
[1745559243434,6.5951,151.58,151.56,5.26711779]
[1745559245436,6.5955,151.57,151.56,5.26711779]
[1745559249738,6.5962,151.56,151.53,23.28]
[1745559250037,5.26711779,151.57,151.51,6.598]
[1745559250237,6.5964,151.55,151.53,5.26711779]
[1745559252134,6.5968,151.54,151.51,5.26711779]
[1745559254735,5.26711779,151.55,151.48,1.8908]
[1745559254932,5.26711779,151.55,151.49,5.26711779]
[1745559255132,5.26711779,151.53,151.49,5.26711779]
[1745559256344,6.5981,151.51,151.49,5.26711779]
[1745559257644,6.5978,151.52,151.49,5.26711779]
[1745559258344,6.5983,151.51,151.49,5.26711779]
[1745559262340,5.26711779,151.55,151.49,5.26711779]
[1745559262846,6.5984,151.51,151.49,5.26711779]
[1745559263449,23.28,151.5,151.38,23.28]
[1745559263745,23.28,151.5,151.45,5.26711779]
[1745559265143,6.5997,151.48,151.45,5.26711779]
[1745559265444,23.28,151.5,151.45,5.26711779]
[1745559266047,6.5997,151.48,151.45,5.26711779]
[1745559273352,6.5997,151.48,151.45,11.86781779]
[1745559273554,6.599,151.49,151.45,11.86781779]
[1745559273850,6.599,151.49,151.47,5.26711779]
[1745559274153,6.5986,151.5,151.47,5.26711779]
[1745559280655,6.5986,151.5,151.47,11.86691779]
[1745559280856,28.54711779,151.53,151.49,5.26711779]
[1745559281654,6.5979,151.52,151.49,5.26711779]
[1745559282953,28.54711779,151.53,151.49,5.26711779]
[1745559284358,6.5983,151.51,151.49,5.26711779]
[1745559285558,6.5983,151.51,151.48,11.86651779]
[1745559289760,6.5983,151.51,151.48,6.5994]
[1745559289955,6.5983,151.51,151.48,11.86651779]
[1745559290661,6.5983,151.51,151.48,5.26711779]
[1745559291762,28.54711779,151.53,151.48,5.26711779]
[1745559292160,5.26711779,151.51,151.46,5.26711779]
[1745559292352,23.28,151.53,151.48,5.26711779]
[1745559292964,29.8773,151.53,151.49,6.5987]
[1745559294464,29.8773,151.53,151.48,11.86641779]
[1745559294667,29.8773,151.53,151.48,5.26711779]
[1745559296172,29.8773,151.53,151.49,6.5989]
[1745559298474,6.5977,151.52,151.49,6.5989]
[1745559298773,23.28,151.53,151.49,6.5989]
[1745559299072,29.8774,151.53,151.49,6.5989]
[1745559300874,29.8774,151.53,151.5,5.26711779]
[1745559301075,6.5978,151.52,151.5,5.26711779]
[1745559302174,23.28,151.53,151.5,11.86551779]
[1745559302975,29.8775,151.53,151.5,5.26711779]
[1745559303678,6.5975,151.53,151.5,5.26711779]
[1745559303976,29.8775,151.53,151.5,5.26711779]
[1745559305974,6.5975,151.53,151.5,5.26711779]
[1745559306174,29.8775,151.53,151.5,5.26711779]
[1745559306774,6.5975,151.53,151.5,5.26711779]
[1745559306980,29.8775,151.53,151.5,5.26711779]
[1745559310885,6.5977,151.52,151.5,5.26711779]
[1745559312986,28.54711779,151.53,151.47,11.86681779]
[1745559313181,23.28,151.53,151.42,25.2514]
[1745559313486,6.6003,151.46,151.43,5.26711779]
[1745559314782,23.28,151.47,151.43,5.26711779]
[1745559315086,23.28,151.47,151.45,5.26711779]
[1745559319891,29.8799,151.47,151.45,5.26711779]
[1745559321191,6.6002,151.46,151.43,5.26711779]
[1745559321693,6.6008,151.45,151.41,11.86941779]
[1745559322990,5.26711779,151.45,151.4,5.26711779]
[1745559323193,5.26711779,151.45,151.39,5.26711779]
[1745559324893,6.6018,151.43,151.39,11.87041779]
[1745559325494,6.6021,151.42,151.39,5.26711779]
[1745559325695,23.28,151.43,151.39,5.26711779]
[1745559325891,28.54711779,151.43,151.39,5.26711779]
[1745559326198,6.6027,151.41,151.39,5.26711779]
[1745559329497,6.6029,151.4,151.36,6.6044]
[1745559329692,6.6029,151.4,151.37,5.26711779]
[1745559330394,28.54711779,151.43,151.37,5.26711779]
[1745559331295,6.6031,151.4,151.37,5.26711779]
[1745559331497,28.54711779,151.43,151.37,5.26711779]
[1745559332498,6.603,151.4,151.37,5.26711779]
[1745559335903,6.6035,151.39,151.37,5.26711779]
[1745559336100,23.3,151.39,151.37,5.26711779]
[1745559336299,23.3,151.39,151.35,5.26711779]
[1745559336500,6.6038,151.38,151.35,5.26711779]
[1745559337303,6.6042,151.37,151.35,5.26711779]
[1745559337604,23.3,151.39,151.35,5.26711779]
[1745559337903,6.604,151.38,151.35,5.26711779]
[1745559338203,23.3,151.39,151.35,5.26711779]
[1745559339301,6.6038,151.38,151.35,5.26711779]
[1745559339505,23.3,151.39,151.35,5.26711779]
[1745559340404,6.6038,151.38,151.35,5.26711779]
[1745559341102,23.3,151.39,151.37,5.26711779]
[1745559341304,23.3,151.41,151.37,5.26711779]
[1745559342411,29.9028,151.41,151.37,11.87121779]
[1745559346609,6.6029,151.4,151.37,11.87121779]
[1745559348013,6.6029,151.4,151.37,5.26711779]
[1745559349314,6.6029,151.4,151.37,11.87121779]
[1745559349914,23.3,151.41,151.39,11.87041779]
[1745559351117,23.3,151.41,151.39,5.26711779]
[1745559352716,29.9026,151.41,151.39,5.26711779]
[1745559357021,23.3,151.41,151.39,5.26711779]
[1745559357218,28.54711779,151.44,151.39,5.26711779]
[1745559357621,6.6017,151.43,151.39,11.87011779]
[1745559359724,6.6021,151.42,151.39,5.26711779]
[1745559360734,28.54711779,151.44,151.39,5.26711779]
[1745559361221,6.6021,151.42,151.39,11.87041779]
[1745559362228,6.6021,151.42,151.39,5.26711779]
[1745559364239,6.6021,151.42,151.39,11.87031779]
[1745559365943,6.6021,151.42,151.39,5.26711779]
[1745559367253,6.6021,151.42,151.39,11.87041779]
[1745559368934,6.6021,151.42,151.39,5.26711779]
[1745559369141,6.6025,151.41,151.39,5.26711779]
[1745559369442,28.54711779,151.4,151.35,5.26711779]
[1745559369639,6.6042,151.37,151.35,5.26711779]
[1745559370839,6.604,151.38,151.35,5.26711779]
[1745559371940,6.6034,151.39,151.35,11.87191779]
[1745559373344,6.6038,151.38,151.35,5.26711779]
[1745559374346,28.54711779,151.4,151.35,5.26711779]
[1745559374939,6.6041,151.38,151.35,5.26711779]
[1745559375646,6.6042,151.37,151.35,5.26711779]
[1745559375843,28.54711779,151.4,151.35,5.26711779]
[1745559376744,6.604,151.38,151.35,5.26711779]
[1745559377649,6.604,151.38,151.35,11.87211779]
[1745559378142,6.604,151.38,151.35,5.26711779]
[1745559378646,6.6042,151.37,151.34,6.6053]
[1745559379345,11.87101779,151.38,151.34,6.6053]
[1745559379746,11.87101779,151.38,151.35,5.26711779]
[1745559381345,11.87101779,151.38,151.35,11.87211779]
[1745559381649,6.6034,151.39,151.35,11.87211779]
[1745559382146,5.26711779,151.43,151.37,11.87101779]
[1745559382351,23.28,151.42,151.39,5.26711779]
[1745559382650,6.6028,151.41,151.39,5.26711779]
[1745559382849,6.6028,151.41,151.38,5.26711779]
[1745559383848,6.6028,151.41,151.38,11.87071779]
[1745559384250,6.6028,151.41,151.38,5.26711779]
[1745559384954,29.8821,151.42,151.38,5.26711779]
[1745559385149,23.28,151.42,151.38,11.87051779]
[1745559386250,6.6027,151.41,151.38,11.87051779]
[1745559387655,6.6027,151.41,151.38,5.26711779]
[1745559396659,6.6029,151.4,151.38,5.26711779]
[1745559396958,23.28,151.42,151.38,5.26711779]
[1745559397158,5.26711779,151.41,151.36,5.26711779]
[1745559397358,6.6042,151.37,151.36,5.26711779]
[1745559398563,6.6039,151.38,151.36,5.26711779]
[1745559402266,6.6035,151.39,151.36,5.26711779]
[1745559403262,6.6035,151.39,151.36,11.87171779]
[1745559403766,23.28,151.42,151.38,5.26711779]
[1745559404762,23.28,151.42,151.4,5.26711779]
[1745559406269,6.6013,151.44,151.41,6.6024]
[1745559406463,28.54711779,151.45,151.4,5.26711779]
[1745559406768,6.6014,151.44,151.4,11.86961779]
[1745559408868,6.6016,151.43,151.4,11.86961779]
[1745559410170,6.6024,151.42,151.38,5.26711779]
[1745559410570,5.26711779,151.41,151.36,5.26711779]
[1745559410769,6.6029,151.4,151.36,5.26711779]
[1745559411070,23.28,151.4,151.36,5.26711779]
[1745559411270,6.6042,151.37,151.34,30.59381779]
[1745559411569,6.6042,151.37,151.34,7.31381779]
[1745559411869,6.6046,151.36,151.34,5.26711779]
[1745559412070,5.26711779,151.37,151.32,5.26711779]
[1745559412468,6.6051,151.35,151.32,5.26711779]
[1745559413171,29.8847,151.36,151.32,5.26711779]
[1745559413771,23.28,151.36,151.32,5.26711779]
[1745559414571,5.26711779,151.35,151.3,6.6072]
[1745559414772,5.26711779,151.35,151.3,5.26711779]
[1745559415272,23.28,151.36,151.32,5.26711779]
[1745559415668,29.8849,151.36,151.32,5.26711779]
[1745559417274,23.28,151.36,151.32,5.26711779]
[1745559417576,475.5,151.4,151.34,5.26711779]
[1745559417577,28.54711779,151.39,151.34,5.26711779]
[1745559417871,6.6041,151.38,151.34,11.87231779]
[1745559418573,29.8834,151.39,151.34,11.87231779]
[1745559419266,29.8834,151.39,151.35,6.6048]
[1745559420275,29.8834,151.39,151.36,6.6046]
[1745559420569,23.28,151.39,151.36,5.26711779]
[1745559420773,6.603,151.4,151.36,5.26711779]
[1745559421072,35.14941779,151.42,151.38,6.6037]
[1745559421273,28.54711779,151.42,151.38,5.26711779]
[1745559421473,28.54711779,151.42,151.36,5.26711779]
[1745559421674,6.6031,151.4,151.36,11.87161779]
[1745559422779,6.6031,151.4,151.37,6.6041]
[1745559424179,6.6031,151.4,151.36,11.87161779]
[1745559427474,6.6025,151.41,151.37,6.604]
[1745559428080,6.6025,151.41,151.38,6.6037]
[1745559428378,6.6025,151.41,151.36,5.26711779]
[1745559428678,6.6025,151.41,151.37,6.604]
[1745559428978,6.6025,151.41,151.36,5.26711779]
[1745559429480,6.6025,151.41,151.37,6.604]
[1745559430679,6.6029,151.4,151.37,6.604]
[1745559430876,28.54711779,151.42,151.36,11.87161779]
[1745559431577,6.6031,151.4,151.36,11.87161779]
[1745559432278,6.6034,151.39,151.36,5.26711779]
[1745559432983,6.6034,151.39,151.36,11.87161779]
[1745559433985,6.603,151.4,151.36,11.87161779]
[1745559435584,6.6034,151.39,151.36,11.87161779]
[1745559437185,6.603,151.4,151.36,11.87161779]
[1745559438486,6.6033,151.39,151.35,6.6049]
[1745559438683,6.6033,151.39,151.36,5.26711779]
[1745559439489,6.6033,151.39,151.36,11.87161779]
[1745559439787,6.6029,151.4,151.36,11.87161779]
[1745559441088,28.54711779,151.42,151.36,11.87161779]
[1745559441589,6.6032,151.4,151.36,11.87161779]
[1745559443698,28.54711779,151.42,151.36,5.26711779]
[1745559444598,6.6031,151.4,151.36,11.87161779]
[1745559447494,28.54711779,151.42,151.36,5.26711779]
[1745559447698,5.26711779,151.4,151.34,5.26711779]
[1745559448001,5.26711779,151.38,151.29,29.0426]
[1745559448199,28.54711779,151.38,151.33,5.26711779]
[1745559448499,6.6049,151.36,151.33,5.26711779]
[1745559449796,6.6051,151.35,151.33,5.26711779]
[1745559450001,6.6051,151.35,151.32,6.6061]
[1745559450199,28.54711779,151.38,151.33,5.26711779]
[1745559450705,6.6051,151.35,151.33,5.26711779]
[1745559452708,5.26711779,151.36,151.31,5.26711779]
[1745559453100,6.6056,151.34,151.31,5.26711779]
[1745559469122,6.6051,151.35,151.31,11.87381779]
[1745559469323,28.54711779,151.38,151.33,5.26711779]
[1745559470324,6.6048,151.36,151.33,11.87301779]
[1745559471924,6.6043,151.37,151.33,11.87301779]
[1745559474028,28.54711779,151.38,151.31,6.6065]
[1745559474226,28.54711779,151.38,151.32,5.26711779]
[1745559475317,6.6049,151.36,151.33,6.6059]
[1745559477125,6.6049,151.36,151.32,11.87331779]
[1745559477828,6.6049,151.36,151.33,6.6059]
[1745559478023,6.6049,151.36,151.32,5.26711779]
[1745559478428,6.6049,151.36,151.32,11.87321779]
[1745559480024,28.54711779,151.38,151.32,5.26711779]
[1745559480229,23.28,151.38,151.34,5.26711779]
[1745559481030,29.884,151.38,151.34,11.87231779]
[1745559481835,23.28,151.38,151.36,5.26711779]
[1745559482331,6.6033,151.39,151.36,5.26711779]
[1745559483231,6.6033,151.39,151.36,11.87151779]
[1745559483426,6.6033,151.39,151.36,5.26711779]
[1745559485634,6.6033,151.39,151.36,11.87161779]
[1745559486132,6.6033,151.39,151.36,5.26711779]
[1745559489639,6.6039,151.38,151.36,5.26711779]
[1745559489833,5.26711779,151.4,151.36,5.26711779]
[1745559490030,5.26711779,151.4,151.34,5.26711779]
[1745559490335,6.6045,151.37,151.34,5.26711779]
[1745559491738,6.6045,151.37,151.34,11.87251779]
[1745559492037,6.6039,151.38,151.34,11.87251779]
[1745559492237,6.6039,151.38,151.36,5.26711779]
[1745559493939,23.28,151.41,151.36,5.26711779]
[1745559494141,23.28,151.41,151.38,5.26711779]
[1745559495342,29.8827,151.41,151.38,11.87081779]
[1745559498748,5.26711779,151.39,151.27,1.14957717]
[1745559498949,5.26711779,151.36,151.31,5.26711779]
[1745559499248,28.52711779,151.36,151.3,5.26711779]
[1745559499944,6.6058,151.34,151.3,5.26711779]
[1745559500743,5.26711779,151.34,151.28,13.92631779]
[1745559501250,6.6066,151.32,151.28,7.31831779]
[1745559501446,5.26711779,151.34,151.28,7.31831779]
[1745559501641,23.26,151.36,151.28,2.0512]
[1745559501642,5.26711779,151.32,151.28,2.0512]
[1745559501846,6.6072,151.3,151.27,5.26711779]
[1745559503451,6.6069,151.31,151.27,5.26711779]
[1745559503851,23.26,151.32,151.29,5.26711779]
[1745559505254,29.8665,151.32,151.29,5.26711779]
[1745559508251,23.26,151.32,151.29,11.87471779]
[1745559508458,23.26,151.32,151.31,5.26711779]
[1745559508645,23.26,151.35,151.31,5.26711779]
[1745559510254,6.6056,151.34,151.31,5.26711779]
[1745559510652,5.26711779,151.37,151.31,5.26711779]
[1745559510856,23.28,151.36,151.31,5.26711779]
[1745559512259,6.6051,151.35,151.31,11.87381779]
[1745559514263,6.6051,151.35,151.31,6.6067]
[1745559514457,6.6051,151.35,151.32,5.26711779]
[1745559515963,23.28,151.36,151.32,5.26711779]
[1745559516161,23.28,151.36,151.34,5.26711779]
[1745559516356,28.52711779,151.39,151.34,5.26711779]
[1745559517063,6.604,151.38,151.34,11.87231779]
[1745559517962,29.8635,151.39,151.35,6.605]
[1745559518262,29.8635,151.39,151.36,5.26711779]
[1745559518462,29.8635,151.39,151.36,11.87171779]
[1745559518663,5.26711779,151.43,151.38,5.26711779]
[1745559518865,23.26,151.42,151.38,5.26711779]
[1745559519270,6.6027,151.41,151.38,5.26711779]
[1745559519862,29.8621,151.42,151.4,5.26711779]
[1745559520266,28.52711779,151.42,151.38,5.26711779]
[1745559520566,6.6031,151.4,151.38,5.26711779]
[1745559521267,28.52711779,151.42,151.36,28.52711779]
[1745559521468,5.26711779,151.4,151.36,5.26711779]
[1745559521767,6.6039,151.38,151.36,5.26711779]
[1745559521968,5.26711779,151.4,151.36,5.26711779]
[1745559522467,6.6041,151.38,151.36,5.26711779]
[1745559523268,6.6034,151.39,151.36,5.26711779]
[1745559523668,11.87031779,151.4,151.36,5.26711779]
[1745559523865,6.6032,151.4,151.36,5.26711779]
[1745559525267,6.6032,151.4,151.36,11.87161779]
[1745559527672,28.52711779,151.42,151.36,5.26711779]
[1745559528172,28.52711779,151.42,151.38,5.26711779]
[1745559528371,6.6027,151.41,151.38,5.26711779]
[1745559528671,23.26,151.42,151.38,5.26711779]
[1745559529565,23.26,151.42,151.39,6.6029]
[1745559529768,6.6016,151.43,151.38,5.26711779]
[1745559529968,11.86831779,151.44,151.38,5.26711779]
[1745559530168,5.26711779,151.47,151.4,5.26711779]
[1745559530372,6.6007,151.45,151.42,5.26711779]
[1745559530772,6.6007,151.45,151.42,11.86911779]
[1745559530967,6.6007,151.45,151.42,5.26711779]
[1745559531165,6.6012,151.44,151.42,5.26711779]
[1745559537980,23.26,151.49,151.42,5.26711779]
[1745559538179,28.52711779,151.49,151.45,5.26711779]
[1745559538376,6.5995,151.48,151.45,5.26711779]
[1745559538778,28.52711779,151.49,151.45,5.26711779]
[1745559539282,23.26,151.49,151.45,5.26711779]
[1745559539581,23.26,151.49,151.47,5.26711779]
[1745559540278,5.26711779,151.51,151.47,5.26711779]
[1745559541381,6.599,151.49,151.47,5.26711779]
[1745559542079,6.5986,151.5,151.47,5.26711779]
[1745559542385,5.26711779,151.51,151.47,5.26711779]
[1745559542386,5.26711779,151.51,151.47,11.86661779]
[1745559542686,6.5985,151.5,151.47,11.86661779]
[1745559543786,6.599,151.49,151.47,5.26711779]
[1745559544488,6.5987,151.5,151.47,5.26711779]
[1745559544787,5.26711779,151.49,151.44,28.52711779]
[1745559544990,6.5995,151.48,151.44,28.52711779]
[1745559546090,6.5995,151.48,151.44,35.12811779]
[1745559546387,6.6,151.47,151.44,28.52711779]
[1745559546585,5.26711779,151.5,151.44,28.52711779]
[1745559547286,6.5997,151.48,151.44,35.12821779]
[1745559550288,6.5997,151.48,151.46,5.26711779]
[1745559550491,5.26711779,151.51,151.46,5.26711779]
[1745559551290,6.5987,151.5,151.46,11.86701779]
[1745559554792,6.5991,151.49,151.46,5.26711779]
[1745559556292,5.26711779,151.51,151.46,5.26711779]
[1745559556293,6.5986,151.5,151.46,5.26711779]
[1745559556892,6.5986,151.5,151.46,11.86721779]
[1745559557994,6.5986,151.5,151.47,6.5997]
[1745559558190,6.5982,151.51,151.48,5.26711779]
[1745559558995,6.5986,151.5,151.48,5.26711779]
[1745559559296,5.26711779,151.51,151.46,11.86731779]
[1745559559795,6.599,151.49,151.46,11.86731779]
[1745559570103,6.5986,151.5,151.46,11.86731779]
[1745559570303,23.26,151.53,151.48,5.26711779]
[1745559570508,5.26711779,151.55,151.5,5.26711779]
[1745559571005,6.5969,151.54,151.5,11.86531779]
[1745559571708,6.5973,151.53,151.5,5.26711779]
[1745559573309,6.5973,151.53,151.5,11.86551779]
[1745559574906,6.5969,151.54,151.5,11.86551779]
[1745559575107,23.24,151.57,151.52,5.26711779]
[1745559575304,23.24,151.6,151.54,5.26711779]
[1745559575505,6.5953,151.58,151.54,11.86371779]
[1745559575810,23.24,151.6,151.56,5.26711779]
[1745559576206,29.8344,151.6,151.56,11.86291779]
[1745559577011,23.24,151.6,151.57,6.5954]
[1745559577213,6.5937,151.61,151.57,6.5954]
[1745559578312,6.5943,151.6,151.57,6.5954]
[1745559578512,6.5943,151.6,151.56,11.86291779]
[1745559580309,6.5943,151.6,151.57,6.5954]
[1745559580515,6.5943,151.6,151.56,5.26711779]
[1745559580712,6.5943,151.6,151.56,11.86281779]
[1745559583718,6.5947,151.59,151.56,5.26711779]
[1745559584717,6.5947,151.59,151.56,11.86291779]
[1745559585220,6.5947,151.59,151.56,5.26711779]
[1745559585418,5.26711779,151.6,151.56,5.26711779]
[1745559585814,5.26711779,151.6,151.54,5.26711779]
[1745559586030,5.26711779,151.58,151.53,7.23921779]
[1745559586619,6.5966,151.55,151.53,7.23921779]
[1745559586920,6.5968,151.54,151.53,7.23921779]
[1745559588523,6.5968,151.54,151.53,5.26711779]
[1745559588725,6.5968,151.54,151.52,23.22]
[1745559588726,6.5968,151.54,151.51,5.26711779]
[1745559589216,5.26711779,151.54,151.49,30.40631779]
[1745559589623,5.26711779,151.54,151.49,7.18631779]
[1745559590623,5.26711779,151.54,151.49,13.78501779]
[1745559591222,6.5977,151.52,151.49,7.18631779]
[1745559593226,6.5977,151.52,151.49,13.78521779]
[1745559593927,6.5977,151.52,151.49,7.18631779]
[1745559594227,6.5973,151.53,151.49,7.18631779]
[1745559594822,6.5976,151.52,151.49,7.18631779]
[1745559595327,5.26711779,151.54,151.49,7.18631779]
[1745559596029,6.598,151.52,151.49,7.18631779]
[1745559597429,6.598,151.52,151.49,13.78521779]
[1745559599429,6.5974,151.53,151.49,13.78521779]
[1745559599828,6.54816498,151.53,151.49,13.78521779]
[1745559600828,6.5977,151.52,151.49,13.78521779]
[1745559601327,6.5974,151.53,151.49,13.78521779]
[1745559601628,23.22,151.55,151.51,5.26711779]
[1745559603326,6.5969,151.54,151.51,5.26711779]
[1745559608430,5.26711779,151.54,151.49,8.518]
[1745559608730,5.26711779,151.52,151.48,7.16511779]
[1745559609329,6.5982,151.51,151.48,13.76451779]
[1745559609530,6.5982,151.51,151.48,11.86651779]
[1745559609830,6.5992,151.49,151.46,28.48711779]
[1745559610030,5.26711779,151.5,151.46,23.22]
[1745559610330,5.26711779,151.5,151.45,11.86751779]
[1745559611235,6.5994,151.48,151.45,11.86751779]
[1745559612830,6.5994,151.48,151.45,5.26711779]
[1745559614631,6.5999,151.47,151.44,1.8505]
[1745559614930,5.26711779,151.48,151.44,1.8505]
[1745559615330,11.86681779,151.48,151.44,8.4516]
[1745559616234,6.5998,151.47,151.44,1.8505]
[1745559616832,6.6005,151.46,151.43,30.42841779]
[1745559618237,6.5999,151.47,151.43,37.02971779]
[1745559620637,6.6003,151.46,151.43,37.02971779]
[1745559621236,6.6003,151.46,151.43,13.80971779]
[1745559621437,6.6003,151.46,151.43,7.20841779]
[1745559621637,6.6003,151.46,151.42,11.86891779]
[1745559623942,5.26711779,151.48,151.43,6.6015]
[1745559623943,6.6,151.47,151.43,6.6015]
[1745559627346,6.6004,151.46,151.43,6.6015]
[1745559628247,6.6004,151.46,151.42,11.86891779]
[1745559629649,6.6004,151.46,151.43,6.6015]
[1745559630449,6.6,151.47,151.43,6.6015]
[1745559633753,5.26711779,151.48,151.44,5.26711779]
[1745559634045,23.22,151.51,151.46,5.26711779]
[1745559634447,6.5988,151.5,151.46,11.86731779]
[1745559634653,5.26711779,151.5,151.46,11.86731779]
[1745559635155,5.26711779,151.5,151.45,6.6005]
[1745559635549,5.26711779,151.48,151.44,28.50711779]
[1745559636254,5.26711779,151.48,151.44,23.24]
[1745559636453,5.26711779,151.48,151.43,5.26711779]
[1745559636856,6.6001,151.47,151.43,11.86861779]
[1745559637155,5.26711779,151.48,151.43,11.86861779]
[1745559638257,6.6004,151.46,151.43,11.86861779]
[1745559646656,5.26711779,151.48,151.43,5.26711779]
[1745559646860,5.26711779,151.48,151.42,1.8967]
[1745559647159,23.24,151.47,151.42,1.8967]
[1745559647354,6.601,151.45,151.42,1.8967]
[1745559647956,6.6012,151.44,151.42,1.8967]
[1745559648156,6.6012,151.44,151.41,28.50711779]
[1745559648352,6.6018,151.43,151.41,5.26711779]
[1745559648858,5.26711779,151.46,151.41,5.26711779]
[1745559649264,6.6014,151.44,151.41,5.26711779]
[1745559650555,6.6014,151.44,151.41,11.86941779]
[1745559651158,6.6008,151.45,151.41,11.86941779]
[1745559651365,23.24,151.47,151.43,5.26711779]
[1745559651761,6.6003,151.46,151.43,5.26711779]
[1745559651960,23.24,151.47,151.43,5.26711779]